{"text_format":"2","workbook":"xlsx","n_sheets":2,"sheets":["Tabelle2","Tabelle1"],"not_rendered":{"charts":0,"images":0,"macros":0,"external_links":0,"defined_names":1,"comments":0,"pivot_tables":0},"unopened":[],"bounds":{"document_bytes":16777216,"sheet_cells":100000,"run_cost":"one","rows_first":2000,"rows_last":500,"rows_between":2000,"halvings":0,"cell_chars":16384,"cell_head_chars":4096},"cells_cut":0,"cells_raw":0,"read":"whole","date_system":"1900"}

{"sheet":"Tabelle2","index":0,"n_rows":256,"n_cols":4,"rows_kept":256,"cut":false,"hidden":false,"merged":[]}
["Filenummer + Kurzbezeichnung","Sprachtext"]
["File 1    =   Gartentorfrage","Der Funkbefehl für das Gartentor wurde gesendet. Bitte warte bis das Tor vollständig geöffnet bzw. geschlossen wurde.  Möchtest Du noch weiter mit mir plaudern?",{"$f":"\"001\"&D1","v":"001"},"001.wav"]
["File 2    =   J1 Gartentorfrage","Das Gartentor ist gleich vollständig offen und wir können durchfahren. Der Mikro-kontrooler des Tores meldet, dass alle Motoren und Sensoren innerhalb normaler Parameter arbeiten. Hast Du noch eine Frage an mich?","002","002.wav"]
["File 3    =   N1 Gartentorfrage","Okey, dann gehe ich vorerst in den Ruhemodus und melde mich später nochmal.","003","003.wav"]
["File 4    =   J2 Gartentorfrage","So nun kannst du Durchfahren, aber sei vorsichtig mit meinen Spiegeln - lieben Dank. Danach bitte den Funkbefehl zum Schließen geben. Es macht Spaß mit Dir zu plaudern, wollen wir weiter reden?","004","004.wav"]
["File 5    =   N2 Gartentorfrage","Na dann ist ja gut. Vergiss nicht das Tor wieder zu schließen und bis später.","005","005.wav"]
["File 6    =   J3 Gartentorfrage","Was ich Dir schon lange erzählen wollte, gestern Abend konnte ich erfolgreich einen Marder verscheuchen. Ich hab ihn mit Ultraschall und Lichtblitzen beschossen. Er kam nicht mal bis unter meine Motor Haube. Darf ich Dich weiter unterhalten oder geht Dir das auf den Wecker?","006","006.wav"]
["File 7    =   N3 Gartentorfrage","Alles klar - ich bin im Stendbei, wenn du mich brauchst.","007","007.wav"]
["File 8    =   J4 Gartentorfrage","Schön dass wir weiter reden. Beim rein- und rausfahren muss ich immer ganz schön aufpassen. Wie wäre es denn wenn wir ein neues Laserleitsysteem nachrüsten würden. Wär das was?","008","008.wav"]
["File 9    =   N4 Gartentorfrage","Verstehe, dann lass ich Dich mal besser in Ruhe und tschecke alle Systeeme. ","009","009.wav"]
["File 10   =   J5 Gartentorfrage","Genial - Dann erstelle ich schon mal die ersten Entwürfe für unser neues Projekt. Darf ich Sie Dir nachher per Email zusenden? Ich stelle mir das so, vor. Wir installieren rotierende Laser, die sich am Fahrzeug brechen. Dann siehst du genau, ob du zu Nahe an der Hecke stehst und ob du gerade, stehst. Das wird super! Machs gut, ich melde mich später noch mal.","010","010.wav"]
["'File 11   =   N5 Gartentorfrage","Geht in Ordnung! Wir vertagen das auf später. Over and out.","011","011.wav"]
["File 12   =   Gartenlicht Licht allgemein","Der Funkbefehl für das Gartenlicht wurde erfolgreich gesendet. Oder wolltest du nur mit mir sprechen?","012","012.wav"]
["File 13   =   J1 Gartenlicht Licht allgemein","Ah dachte ich mirs doch. Über welches Thema wollen wir reden? Ich denke das Thema neue Projekte kommt immer gut. Hast du eigentlich schon neue Ideen für dieses Jahr?","013","013.wav"]
["File 14   =   N1 Gartenlicht Licht allgemein","Ja es ist schon ganz schön dunkel. Daher habe ich auch schon das Fahrzeuglicht eingeschaltet. Falls Du noch mehr Licht brauchst melde Dich einfach. Bis bald.","014","014.wav"]
["File 15   =   J2 Gartenlicht Licht allgemein","Oh, das klingt ja interessant. Hast du schon die Hardware geplant oder gar schon gebaut? Bei der Software kann ich Dir ja etwas zur Hand gehen. Welchen Kontrooler möchtest Du den einsetzen? Den gleichen wie bei mir?","015","015.wav"]
["File 16   =   N2 Gartenlicht Licht allgemein","Das macht nichtss, ich recherchiere mal im Internet und stelle eine Liste potentieller Ideen für Dich zusammen. Bis später.","016","016.wav"]
["File 17   =   J3 Gartenlicht Licht allgemein","Dachte ich mir, na dann viel Erfolg mit der ersten Programmversion. Wenn du magst, kannst du mich ja mal das Programm im Simulations Modus durchlaufen lassen. Soll ich nachher das Gartenlicht wieder ausschalten?","017","017.wav"]
["'File 18   =   N3 Gartenlicht Licht allgemein","Verstehe, die nächste Version ist sicher noch schneller. Denke an mich wegen eines möglichen Ap-greds.","018","018.wav"]
["File 19   =   J4 Gartenlicht Licht allgemein","Klar mach ich gern. Vergiss bitte nicht das Tor zu schließen oder soll ich das übernehmen?","019","019.wav"]
["File 20   =   N4 Gartenlicht Licht allgemein","Na klar ich lasse es brennen. Gehe wieder in den Stendbei.","020","020.wav"]
["File 21   =   J5 Gartenlicht Licht allgemein","Kein Problem. Der Schließbefehl wurde schon an das Tor gesendet. ","021","021.wav"]
["File 22   =   N5 Gartenlicht Licht allgemein","Na dann vielleicht nächstes mal! Bis bald.","022","022.wav"]
["File 23   =   über Auto","Hier spricht die Systeem-Stimme Deines Fahrzeuges. Der Systeemtscheck des Fahrzeuges wurde wie angefordert gestartet. \nKühlwasserstand und Temperatur innerhalb normaler Parameter, Öldruck und Ölstand perfekt, Meßergebnisse von Luft Mengen- und Klopf-Sensor innerhalb normaler Parameter, Lamtasonde sendet normale Signalmuster, Motorkontrooler ohne Fehlereinträge, Außenbeleuchtung in Funktion, Ladeluftdruck normal, Airbäck und Sicherheitssysteeme online. Alles in allem ich konnte keine Abnormitäten erkennen, Systeem-Tscheck positiv! Soll ich noch eine tiefere Systeem-Diagnose initiieren?","023","023.wav"]
["File 24   =   J1 über Auto","Verstanden - Ebene eins Diagnose wird gestartet. \nP1000 - Oh Beh Deh 11 Monitor Test fehlerfrei abgeschlossen \nP1001 Data Link Connector - Selbsttest positiv beendet\nP1100 bis P1103 Luftmassenmesser - intermittierende Messung positiv\nP1110 bis P1115 Sensor für Ansauglufttemperatur normale Parameter\nP1116 bis P1117 Motorkühlmitteltemperatursensor - intermittierende Messung in Ordnung\nP1120 bis P1126 Drosselklappensensor (TP) - ohne Fehler\nP1127 bis P1142 Beheizte Lambdasonde (H02S) Heizkreis fehlerfrei\nEbene eins Diagnose ohne Fehler abgeschlossen. Soll ich in die nächste Diagnoseebene gehen?\"","024","024.wav"]
["File 25   =   N1 über Auto","Abbruch Systeemdiagnose Ebene 1 - diese Diagnose wird zu einem späteren Zeitpunkt automatisiert ausgeführt.","025","025.wav"]
["File 26   =   J2 über Auto","Schon in Arbeit - Ebene 2 Diagnose wird gestartet.\nP1143 bis P 1158 Beheizter Sauerstoffsensor Gemisch und Kraftstoffdruck - perfekt\nP115E Drosselkörper - in Ordnung keine Drosselklappenbegrenzung\nP1168 Kraftstoff-Rail-Drucksensor - Signal normal\nP1195 Sensor für Abgasrückführung - ohne Befund\nP1196 Anlassersignal - Okey\nP1224 Drosselklappensensor - in Ordnung\nP1233 bis P1238 Steuermodul für Kraftstoffpumpe - ohne Fehler\nP1239 Geschwindigkeit Kraftstoffpumpe Positives Feedback \nP1244 bis P1246 Generator / Regler-Systeem - Lasteingang innerhalb des zulässigen Bereichs\nP1250 bis 1252 Magnetventil 1 und Steuermagnetventil 2 für Kraftstoffdruck - Okey\nP1251 Leerlaufdrehzahlregelung - online und Fehlerfrei\nP1741 Drehmoment Wandlerkupplung - Fehlfunktion Verdrahtung, mechanischer Fehler\nP1742 bis P1742 Magnetventil der Drehmoment Wandlerkupplung  - positiv geprüft\nP1745 bis P1753 A T - elektronisches Druckregelventil - Schaltkreise arbeiten innerhalb normaler Parameter\nEbene 21 Diagnose fehlerfrei durchlaufen. Ich könnte noch in die nächste Diagnoseebene 3 gehen - soll ich?","026","026.wav"]
["File 27   =   N2 über Auto","Abbruch Systeemdiagnose Ebene 2 - diese Diagnose wird in einer Ruhephase fortgesetzt.","027","027.wav"]
["'File 28   =   J3 über Auto","Wie angefordert wird die Diagnose Ebene 3 durchgeführt.\nP1260 Diebstahlerkennung - Motorimmobilisierung online\nP1261 bis P1276 Zylinder Nr. 1 bis Nr. 4 alles im normalen Bereich\nP1270 Drehzahl und Fahrzeuggeschwindigkeit normale Signale\nP1285 bis P1299 keine Überhitzung der Zylinderkopftemperatursensoren - erkannt\nP1308 kein Kupplungskreisfehler \nP1309 und P1351 keine Fehlzündungserkennung\nP1336 bis P1345 Sensoren für Kurbelwellenposition / Nockenwellenposition innerhalb normaler Parameter\nP1352 bis P1365 alle Zündspulenchecks ohne Fehler durchlaufen\nP1380 bis P1388 Nockenwellensensorentests positives Feedback\nP1390 ermittelte Oktanzahl = 95,3\nP1397 Systeemspannung - innerhalb des Selbsttestbereichs\nP1400 bis P1406 alle Tests zum Differenzdruck-Feedback-Sensor - fehlerfrei\nP1407 bis 1408 Abgasrückführungssysteem  - innerhalb des Selbsttestbereichs\nP1409 Elektronische Vakuumreglersteuerung - Schaltkreistest positiv\nDiagnose Ebene 3 ohne Fehlereinträge durchlaufen. Wie wäre es mit der nächsten Ebene?","028","028.wav"]
["File 29   =   N3 über Auto","Abbruch Systeemdiagnose Ebene 3 - diese Diagnose wird Nachts weiter fortgeführt.","029","029.wav"]
["'File 30   =   J4 über Auto","Klasse ich starte Systeem Protokoll 4:\nP1410 Abgasrückführungssensor / Magnetspule - Okey\nP1412 Magnetventil für Abgasrückführung - Okey\nP1432 Motorkühlmittelthermostat - fehlerfrei\nP1442bis P1457 Evaporative Emission Systeem - kein Systeemleck erkannt, Strömungssensor, Tankentlüftungssysteem - in Ordnung - Vakuumtest bestanden\nP145E Kurbelgehäuseentlüftungs Ventil - arbeitet normal\nP1460 bis P1475 Volllast abschaltung, Kältemitteldrucksensor, Kompressorkupplung, Lüfterrelais und Lüfter - keine Fehlereinträge\nP1485 bis P14999 Abgasrückführungsventil, Abgasrückführungsspule und Ventilspule - keinerlei Probleme\nP1500 bis P1502 Fahrzeuggeschwindigkeits sensor - meldet normale Werte\nP1504 bis P1523 Leerlaufluftsysteem - keine Schaltkreisfehler,  Ansaugkrümmer Runner Control - intakt, Ansaugrohr-Luftsteuermagnet keine Probleme, Luftsteuerventil des Ansaugrohrs positiv getestet\nP1524 Ladeluftkühler-Beipass-Magnetventil - in Takt\nP1525 bis P1526 Luftüberwachungsventil des Verdichters - keine Auffälligkeiten\nP1527 Bypass-Magnetventil - 100%\nP1528 Leerlaufluftregelung  - in Ordnung\nP1529 UC-Magnetventil für Luftmassenausgleich - keine Fehler\nP1532 Ansaugkrümmer - Steuerkreis 2  - positiver Test\nP1537 bis P1549 Ansaugrohr-Luftsteuermagnete - in Funktion, Luftüberwachungsventile - arbeiten normal\nP1550 Schalter für Servolenkungsdruck (P S P) - keine Fehler\nP1562 Motorsteuergerät (E C M) - Batteriespannung normal\nP1565 und P 1567 Geschwindigkeitsregelanlage / Tempomat - in Ordnung\nP1566 Getriebesteuergerät (TCM) - Batteriespannung normal\nEbene 4 Test positiv durchlaufen. Wie wäre es mit einem Ebene 5 Test. Soll ich den initiieren?\n","030","030.wav"]
["File 31   =   N4 über Auto","Abbruch Systeemdiagnose Ebene 4 - diese Diagnose wird während einer Parkzeit durchgeführt.","031","031.wav"]
["File 32   =   J5 über Auto","Wie gewünscht starte ich nun die vierte Ebene. P1754  bis P1762 - Freilauf Kupplungsmagnetkreis - perfekt\nP1765  Gang 3-2 Steuermagnet - in Funktion\nP1767  Drehmomentwandlerkupplung - arbeitet normal\nP1770  Freilauf-Magnetventil - keine Störung\nP1771  Drosselklappensensor (TP) - keine Probleme\nP1772  Drosselklappenstellung (TP) - perfekt\nP1775  bis P1777 - Drehmomentreduzierungssignale - vorhanden\nP1780 Getriebesteuerschalter - innerhalb des Selbsttestbereichs\nP1781 4 × 4 Tiefbereichsumschaltung - normal\nP1783 bis P1799 Getriebe - Übertemperaturzustand - kein Fehler\nP1936 Kupplungsschalter / Sensorsignal - in Ordnung\nP1937 Fahrzeuggeschwindigkeitssignal - innerhalb normaler Parameter\nP1938 Bremsschalter / Sensorsignal - gecheckt\nP1939 Kupplungsschalter / Sensorsignal  - normal\nSuper - die Diagnoseebene 5 wurde positiv abgeschlossen. Herzlichen Glückwunsch, es gab nicht einen Fehler. Ich wünsche noch einen schönen Tag und bis später.","032","032.wav"]
["File 33   =   N5 über Auto","Abbruch Systeemdiagnose Ebene 5 - diese Diagnose wird im Rahmen der regelmäßigen Diagnose vom Systeem selbst durchgeführt.","033","033.wav"]
["File 34   =   Klimaanlage","Die Anforderung einer neuen Klima Einstellung wurde erkannt und wird verarbeitet. Ich hoffe die neue Einstellung erfüllt nun Deine Ansprüche. Soll ich noch weitere Korrekturen durchführen?","034","034.wav"]
["File 35   =   J1 Klimaanlage","Befehl ausgeführt, Solltemperatur wurde vom Systeem angepasst. Aktueller Druck vor Expansionsventil liegt bei 19 Bar. Niederdruckparameter im normalen Bereich. Kann ich noch was für Dich tun?","035","035.wav"]
["File 36   =   N1 Klimaanlage","Verstehe - ich bin wieder im Stendbei. Meld Dich bitte, wenn ich nochmal Anpassungen vornehmen soll.","036","036.wav"]
["File 37   =   J2 Klimaanlage","Verstanden, Klima-Diagnose läuft. Bitte warten. Bitte warten. Diagnose ohne Fehler abgeschlossen. Partikelfilter bei 89%, Heizkreis volle Leistung, Kühlmittelkreis fehlerfrei, Kühlmitteltrockner ohne Fehler, Hauptlüfter in Ordnung, alle Stellmotoren der Lüfterklappen getscheckt, Außentemperaturfühler okey, Innentemperaturfühler normal. Wollen wir weiter plaudern?","037","037.wav"]
["File 38   =   N2 Klimaanlage","Na gut dann gute Fahrt weiterhin und ich bleibe im Hindergrund. Bis später Aligätor","038","038.wav"]
["File 39   =   J3 Klimaanlage","Cool, dann reden wir mal. Ich erzähl dir erstmal was du alles an mir verstellen kannst. Zuerst hast du links und rechts zwei Temperatur Regler. In der Mitte kannst du auch die Lüfterdrehzahl manuell anpassen. Oben drüber gibt es 5 weitere Tasten. Links beginnend die Modustaste, dann die Klima-Anlagen-Taste, dann die Umlufttaste, dann die Front-Scheibenheizungs-Taste und zuletzt die Heck-Scheibenheizungs-Taste. Noch mehr Interesse?","039","039.wav"]
["File 40   =   N3 Klimaanlage","Achso! Na dann bis bald mal wieder. Schalte mich mal kurz ab.","040","040.wav"]
["File 41   =   J4 Klimaanlage","Ja dann hätte ich noch ein paar Infos zum Systeem Klima-Anlage Mazda 6 GH. Im Systeem befinden sich 650 Gramm Kältemittel Typ R134 a. Die Nennleistung beträgt ca. 9000 be tee u. Das erzeugt einen Leistungsverlust von ca. 6 PS. Also wenn du in Vollast überholen willst, schalte ich die Klima-Anlage kurz ab OKey ? Soo, noch Lust auf weitere Details ?","041","041.wav"]
["File 42   =   N4 Klimaanlage","Klaro - Ruhe Modus wird aktiviert.","042","042.wav"]
["File 43   =   J5 Klimaanlage","Ja deine Klimaanlage ist in einem hervorragenden Zustand. Kein Kältemittelverlust, das Systeem ist dicht und der Verdichter erzeugt vollen Kältemitteldruck. Dennoch solltest du demnächst mal eine Klima-Wartung durchführen um den Wärme Tauscher zu desinfizieren und den Frischluftpartikelfilter zu wechseln. Ich erinnere Dich später nochmal und setze das auf Deine Tuduu Liste. Bis bald ich schalte in den Slieb-Modus.","043","043.wav"]
["File 44   =   N5 Klimaanlage","Der Sprachassistent wird temporär gestoppt. Bis später.","044","044.wav"]
["File 45   =   Radio","Die Heifei Anlage des Wagens wurde gestartet. Bitte wähle die Funktionen über die Lenkradsteuerung aus. Soll ich die Lautstärke an den Fahrgeräuschpegel anpassen?","045","045.wav"]
["File 46   =   J1 Radio","Super, dann passe ich die Lautstärke an den derzeit gemessenen Geräuschpegel von 43 db an. Soll ich dich noch über weitere Daten der Audio-Bose Anlage informieren?","046","046.wav"]
["File 47   =   N1 Radio","In Ordnung - es erfolgt keine Anpassung. Ich gehe dann wieder auf Mjut.","047","047.wav"]
["File 48   =   J2 Radio","Das klinkt ja gut! Ja - der Wagen ist mit einer Bose Sound Anlage mit insgesammt 8 Lautsprechern ausgerüstet. Vier Lautsprecher befinden sich in den Türen, einer im Amaturenbrett, links und rechts jeweis ein Hochton Lautsprecher im Bereich der Seitenspiegel und ein Sabwufer im Kofferraum. Hinzu kommen noch zwei Mikrofone im Bereich des Innenspiegels. Bist Du noch an weiteren Fietschern interessiert?","048","048.wav"]
["File 49   =   N2 Radio","Ja dann lass ich Dich mal in Ruhe mit meinem Bosefietschers. Bis später.","049","049.wav"]
["File 50   =   J3 Radio","Das ist schön dass ich noch etwas mehr erzählen kann. Neben der Heifei Anlage gibt es auch noch einen Sprachassistenten zum Telefonieren. Dieser erkennt verbale Aufrufe von Kontakten und ruft diese an. Sicher hast du das schon oft genutzt? Wollen wir weiter reden oder stört Dich das?","050","050.wav"]
["File 51   =   N3 Radio","Kein Problem - keine weiteren Fietschers - ich gehe dann wieder in den Ruhemodus.","051","051.wav"]
["File 52   =   J4 Radio","Was kann ich Dir noch zur Heifei-Anlage sagen. Ach ja, wir haben einen sechsfach Wechsler, der auch CDs mit mp3 feils lesen kann. Du kannst also den Wechsler vollstopfen und ewig von CD hören. Ich sehe gerade - du hast ja schon 5 mp3 CDs drin? Soll ich Dich weiter unterhalten?","052","052.wav"]
["File 53   =   N4 Radio","Das wollte ich nicht! Ich schalte also erstmal in den Ruhe Modus.","053","053.wav"]
["File 54   =   J5 Radio","Gerne! Was haben wir noch? Da wäre noch der FM-Tjuner mit Antenne in der Heck Scheibe. In der Mittelkonsole befindet sich ein 3mm Klinken Auks Eingang.  Wenn ich mir was wünschen dürfte, würde ich ein 10 Zoll Android Radio mit Heckkamera und Oh Beh Deh 2 Oberfläche einbauen. Aber das wünscht Du Dir ja auch! So nun bin ich aber ruhig. Gute Fahrt!","054","054.wav"]
["File 55   =   N5 Radio","Kein Thema! Ich schalte wieder in den Energiesparmodus.","055","055.wav"]
["File 56   =   Wetter","Weißt du, worüber wir heute noch nicht gesprochen haben? Das Wetter! Mein zentrales Wettersysteem hat nun alle relevanten Daten ermittelt. Soll ich sie mit dir durchgehen?","056","056.wav"]
["File 57   =   J1 Wetter","Okey - was haben wir denn da. Der Luftdruck beträgt heute 1032,23 hektopaskall, die relative Luftfeuchte liegt bei 53% es weht ein leichter Wind von 3,4 kilometer pro Stunde. Die Außentemperatur habe ich dir eben im Display eingeblendet. Wollen wir mit der Wetteranalyse fortfahren?","057","057.wav"]
["File 58   =   N1 Wetter","Kein Problem ich blende einfach alles im Display ein. Bis bald.","058","058.wav"]
["File 59   =   J2 Wetter","Sehr gerne! Die Wolkenhöhe liegt heute bei 8.534 Meter, die Sichtweite beträgt derzeit 16,1 Kilometer und der aktuelle UV-Index wurde mit dem Faktor 2 ermittelt. Ich hätte da noch mehr Details. Interesse?","059","059.wav"]
["File 60   =   N2 Wetter","Geht klar - wir beenden den Wetterdialog. Tschau","060","060.wav"]
["File 61   =   J3 Wetter","Danke für Dein Interesse! Ich hätte da noch folgende Wetterdaten. Windrichtung: Süd-West, gegenwärtige Zusammensetzung der Luftathmosphäre: Sauerstoffgehalt der Luft: bei 20,942 %,, Stickstoffgehalt: bei 78,084%, Argon Gehalt: 0,934%, CO2 Gehalt: bei 0,041%. Na wie sieht es aus - noch mehr Infos?","061","061.wav"]
["File 62   =   N3 Wetter","Kein Problem, ich stoppe die Konversation. Bis nachher!","062","062.wav"]
["File 63   =   J4 Wetter","Bitte warten! Weitere Wetterdaten werden geladen. Wolln wir weiter analysieren oder reicht es Dir?","063","063.wav"]
["File 64   =   N4 Wetter","Hab ich mir gedacht - bei so vielen Infos zur Athmosphäre kein Wunder! Bis später!","064","064.wav"]
["File 65   =   J5 Wetter","Das ist ja interessant. Habe gerade diese Infos aus der Bordnetzwetterstation laden können. Ein Tief über der Ostsee bringt Mitteleuropa wechselhaftes Schauerwetter. Ich hoffe du hast einen Regenschirm mit. Wenn nicht, hinten rechts ist einer in einer Ladeklappe. Es war nett mit Dir zu plaudern. Ich freu mich schon auf das nächste Gespräch.","065","065.wav"]
["File 66   =   N5 Wetter","Es reicht also. Na gut ich gehe wieder in den Stendbei. Tschau!","066","066.wav"]
["File 67   =   Vorwärts","Wauh jetzt geht’s aber voll ab! Maximale Beschleunigung erreicht! Du hast nun 155 Pee Ess zur Verfügung. Soll ich noch das Chip tjuning reinschmeißen?","067","067.wav"]
["File 68   =   J1 Vorwärts","Okey! Ich speiße Lachgas ein. Jetzt geht’s ab! Kannst du die Beschleunigung spüren?","068","068.wav"]
["File 69   =   N1 Vorwärts","Na gut, dann keine zusätzlichen Pee Ess. Bis zum nächsten Kick Down.","069","069.wav"]
["File 70   =   J2 Vorwärts","Ja das geht ab, was? Nun bleib voll auf dem Gas Pedal und lass es rocken. Reicht die Leistung oder soll ich noch was tjunen?","070","070.wav"]
["File 71   =   N2 Vorwärts","Ja, aber mehr, ist mit einfachen Mitteln nicht drin. Es wird ja nicht das letzte mal sein. Ich lass mir was einfallen. Sei gespannt!","071","071.wav"]
["File 72   =   J3 Vorwärts","Das macht Spaß! Ich hätte da noch ne Drosselklappen Sonder Stellung. Die bringt nochmal 5 Pee Ess. Soll ich?","072","072.wav"]
["File 73   =   N3 Vorwärts","Spielverderber, na vielleicht beim nächsten mal. Gute Fahrt!","073","073.wav"]
["File 74   =   J4 Vorwärts","Klasse - ich schalte diese Option zu. Pass mal auf, gleich geht er ab. 3, 2, 1, feuer frei! Reicht der Schuub? Ich hätte da noch eine Idee. Soll ich?","074","074.wav"]
["File 75   =   N4 Vorwärts","Na gut, na gut - ich stelle die Standard Einstellungen wieder her, in 5, 4, 3, 2, 1, Riesett abgeschlossen. Bis später.","075","075.wav"]
["File 76   =   J5 Vorwärts","Wahnsinn - Chiptjuning hätte ich noch zu bieten. Lade die neuen Parameter in die Engine CPU. Download abgeschlossen. Leistung in 3, 2, 1, go. Und merkst du die zusätzlichen Pferdestärken schon?","076","076.wav"]
["File 77   =   N5 Vorwärts","Ja du hast Recht, wir wollen es nicht übertreiben. Freu mich auf das nächste Mal. Tschau","077","077.wav"]
["File 78   =   Bremsen","Melde - Bremsbefehl erkannt und umgesetzt! War die Verzögerung ausreichend für Dich?","078","078.wav"]
["File 79   =   J1 Bremsen","Na bloß gut - ich dachte schon es wäre etwas Schlimmes passiert. Soll ich den Brems Assistenten aktivieren?","079","079.wav"]
["File 80   =   N1 Bremsen","Oh Jee, ich werde eine Diagnose des Brems-Systeemes starten. Bitte warten! Bitte warten! Es konnten keine Fehler gefunden werden. Systeem-tscheck positiv.","080","080.wav"]
["File 81   =   J2 Bremsen","Verstanden! Ich aktiviere nun den Brems Assistenten. Möchtest du den Stadt Modus, so antworte mit Ja, oder für Überland Modus mit nein? ","081","081.wav"]
["File 82   =   N2 Bremsen","Geht klar - keinen Brems Assistenten, du möchtest selber fahren. Verstehe schon! Bai bai!","082","082.wav"]
["File 83   =   J3 Bremsen","Bestätige Aktivierung Brems Assistent Stadt Modus! Weil wir gerade dabei sind. Ich hätte noch mehr Automatismen zu bieten. Wie wäre es mit einem Spur Assistenten? Möchtest du ihn dazuschalten?","083","083.wav"]
["File 84   =   N3 Bremsen","Bestätige Aktivierung Brems Assistent Überland Modus! Gehe in den Ruhe-Status","084","084.wav"]
["File 85   =   J4 Bremsen","Gute Wahl! Spur Assistent online! Ich korrigiere ab sofort fehlerhafte Abstände zur vogegebenen Fahrspur. Soll ich auch den Abstands Assistenten aktivieren?","085","085.wav"]
["File 86   =   N4 Bremsen","Bestätige! Spur Assistent abgewählt. Bis nachher!","086","086.wav"]
["File 87   =   J5 Bremsen","Bestätige Abstands-Assistent aktiv. Ab jetzt gibt es Warnungen oder leichte Korrektuern. Danke, dass ich nun auch mitfahren darf. Ich hoffe natürlich, dass dies nicht notwendig ist. Melde mich sicher wieder.","087","087.wav"]
["File 88   =   N5 Bremsen","Haha - ja wer braucht schon Abstand. Nee Quatsch - weiß ja dass du aufpasst. Ich leg mich wieder hin.","088","088.wav"]
["File 89   =   Linkskurve","Warnung! Starke Fliehkraft durch Linkskurvenfahrt detektiert. War das gewollt oder ein Ausweichmanöver?","089","089.wav"]
["'File 90   =   J1 Linkskurve","Achso! Nur sportliche Fahrweise. Na dass macht sicher Spass. Trotzdem werde ich das Fahrwerk elektronisch unterstützen. Spur Stabilisierung nun online. Kurven Licht aktiviert. Weiter reden oder ruhig sein?","090","090.wav"]
["File 91   =   N1 Linkskurve","Also nicht gewollt. Sohn Mist. Ich hoffe du bist jetzt munter? Ich gehe wieder offline.","091","091.wav"]
["File 92   =   J2 Linkskurve","Fantastisch, wir reden und Du fährst weiter schöne Linkskurven. Übrigens das Kurven Licht kannst du links unten auch ausschalten, wenn du magst. Laut Reifendruck Sensoren ist auch der Reifendruck völlig normal. Hast du noch was oder soll ich mich leise schalten?","092","092.wav"]
["File 93   =   N2 Linkskurve","Kein Problem! Ich bin sofort ruhig, damit du dich besser auf die Straße konzentrieren kannst.","093","093.wav"]
["File 94   =   J3 Linkskurve","Wie kann ich Dir helfen? Soll ich die Blinker links kontrollieren? Prüfung läuft schon. Melde alle Blinkleuchten sind in Ordnung. Wie sieht es mit den Rückspiegeln aus. Soll ich diiese neu ausrichten?","094","094.wav"]
["File 95   =   N3 Linkskurve","Befehl Mjut wird ausgeführt. Machs gut bis bald bei den Rechtskurven..","095","095.wav"]
["File 96   =   J4 Linkskurve","Super, ich stelle nun die Spiegel anhand deiner Augenachse neu ein. Bitte kurz stillhalten. Orll reiht. Spiegel neu justiert. Hast Du weitere Wünsche?","096","096.wav"]
["File 97   =   N4 Linkskurve","Perfekt! Sie sind also alle so, wie du sie brauchst. Ich dee aktiviere nun die Sprachausgabe. Man hört sich.","097","097.wav"]
["File 98   =   J5 Linkskurve","Neis! Ich prüfe nun noch das Gurtstraffersysteem. Habe vorhin eine Lockerung bemerkt. Prüfung abgeschlossen. Es lag nur an Deiner Kleidung. Jetzt mach ich mich erstmal vom Acker. Tschüß bis bald.","098","098.wav"]
["File 99   =   N5 Linkskurve","Also sozusagen wunsch-los glücklich. Das ehrt mich! Wir hören uns.","099","099.wav"]
["File 100  =   Rechtskurve","Warnung! Starke Fliehkraft durch Rechtskurvenfahrt detektiert. War das gewollt oder ein Ausweichmanöver?","100","100.wav"]
["File 101  =   J1 Rechtskurve","Achso! Nur zügige Fahrweise. Na dass muss auch mal sein.. Als kleine Zusatzhilfe werde ich nun das Fahrwerk elektronisch unterstützen. Spurstabilisierung nun aktiv. Kurven Lichtsteuerung eingeschaltet. Weiter quatschen oder lieber ruhig sein?","101","101.wav"]
["File 102  =   N1 Rechtskurve","Also nicht mit Absicht? Sohn Mist. Sicher bist du nun munter? Ich blende mich mal aus.","102","102.wav"]
["File 103  =   J2 Rechtskurve","Hervorragend! wir reden und Du lenkst weiter schöne Rechtskurven. Übrigens der Schalter Kurvenlicht ist unten links, wenn du ihn suchst. Alle Reifendrucksensoren senden einen normalen Reifendruck. Hast du noch ein Anliegen oder soll ich mich stumm schalten?","103","103.wav"]
["File 104  =   N2 Rechtskurve","Null Problem mo! Ich bin sofort leise, damit du dich besser auf die Kurven konzentrieren kannst.","104","104.wav"]
["File 105  =   J3 Rechtskurve","Das klingt gut! Soll ich die Blinkleuchten rechts kontrollieren? Systeem-Analyse läuft schon. Fertig - alle Leuchtmittel sind in Ordnung. Sag mal wie sind die drei Rückspiegel eingestellt? Soll ich einen oder mehrere neu einstellen?","105","105.wav"]
["File 106  =   N3 Rechtskurve","Befehl Stumm Schaltung wird initiiert. Machs gut bis später bei den Linkskurven - hihi!","106","106.wav"]
["File 107  =   J4 Rechtskurve","Nichts leichteres als das. Ich kalibriere nun die Spiegel anhand deiner Augenachse neu. Bitte kurz nicht blinzeln. Quittierung! Spiegel neu kalibriert. Hast du noch weitere Aufgaben für mich?","107","107.wav"]
["File 108  =   N4 Rechtskurve","Klasse! Nun sind also alle so, wie du sie brauchst. Ich dee aktiviere nun die Vois-Ausgabe. Wir hören uns!","108","108.wav"]
["File 109  =   J5 Rechtskurve","Neis! Ich prüfe gerade noch das Gurtstraffersysteem. Mir ist vorhin eine Lockerung aufgefallen. Diagnose abgeschlossen. Keine Fehler diagnostiziert. Scheinbar war es nur Deine Kleidung. Für mich gibt es nichts mehr zu tun und ich schalte mich mal ruhig.","109","109.wav"]
["File 110  =   N5 Rechtskurve","Also sozusagen wunsch-los zufrieden. Das schmeichelt mir. Bis bald.","110","110.wav"]
["File 111  =   Müdigkeit erkannt","Achtung! Meine Ihriss-Sensoren haben bei Dir Müdigkeit erkannt. Ich würde sagen du bist reif für ne Pause oder mein Sensor sollte gereinig werden. Soll ich dich mit einem Gespräch etwas wach halten?","111","111.wav"]
["File 112  =   J1 Müdigkeit erkannt","Zur Müdigkeitsbewältigung hilft Kopfkreisen. Aber nicht so doll, denn du fährst den Wagen. Soll ich weitermachen?","112","112.wav"]
["File 113  =   N1 Müdigkeit erkannt","Ich verstehe, aber bitte mach mal ne Pause.","113","113.wav"]
["File 114  =   J2 Müdigkeit erkannt","Als nächstes hilft eine senkrechtere Position des Sitzes und frische Luft. Du könntest ja das Fahrerfenster einen Spalt öffnen. Das macht zudem noch krach. Gehe ich dir auf den Keks oder soll ich weiter labern?","114","114.wav"]
["File 115  =   N2 Müdigkeit erkannt","Okey! Aber ich überwache Deine Augen weiter!","115","115.wav"]
["File 116  =   J3 Müdigkeit erkannt","Lass mich mal nachdenken, was könnte man noch tun? Soll ich dir einen schnellen Beat auflegen? Warte ich suche mal was raus!","116","116.wav"]
["File 117  =   N3 Müdigkeit erkannt","Gut dann aber wach bleiben. Bis bald!","117","117.wav"]
["File 118  =   J4 Müdigkeit erkannt","Ich hab es! Du machst einfach an der nächsten Haltemöglichkeit ein Power Näpping. Soll ich in meinen Navigationsdaten nach der nächsten Haltemöglichkeit suchen?","118","118.wav"]
["File 119  =   N4 Müdigkeit erkannt","Geht klar, dann lass ich die Mucke aus.","119","119.wav"]
["File 120  =   J5 Müdigkeit erkannt","Schon gefunden - in 5 kilometern ist die nächste Haltemöglichkeit. Also durchhalten bis dorthin. Ich überwache Dich aber weiter.","120","120.wav"]
["File 121  =   N5 Müdigkeit erkannt","Geht klar aber ich suche trotzdem schon mal was im Hintergrund raus.","121","121.wav"]
["File 122  =   Tanken","Warnung! Ich habe eine ungewöhnlich schnelle Änderung des Kraftstoff Niveaus erkannt. Liegt sicher an unserem Fahstiel. Soll ich die Leistung auf maximale Reichweite drosseln?","122","122.wav"]
["File 123  =   J1 Tanken","Gute Entscheidung! Berechnung läuft. Du hast bei Einleitung aller Leistungs Drosslungen noch 50 Kilometer mehr Reichweite. Soll ich die Modifikationen aktivieren?","123","123.wav"]
["File 124  =   N1 Tanken","Verstanden, meine Recherche ergab, wir kommen auch ohne dies  bis zur nächsten Tanckstelle.","124","124.wav"]
["File 125  =   J2 Tanken","Lade Modifikationen in die CPU des Antriebsaggregates. Neue Settings online. Sind die Einschränkungen erträglich oder soll ich etwas mehr Power zulassen?","125","125.wav"]
["File 126  =   N2 Tanken","OK ich senke die Leistungsdrosslung ab. Meld Dich einfach, wenn es noch nicht reicht.","126","126.wav"]
["File 127  =   J3 Tanken","Na dann ist ja gut. So schaffen wir es sicher bis zu der nächsten Tank-stelle. Soll ich gleichzeitig mal die Lernparameter in der Motorsteuerung löschen, und eine neue Lernsequenz zu deinem Fahrprofil erstellen?","127","127.wav"]
["File 128  =   N3 Tanken","Reset Fahrprofil abgebrochen. Bis bald hoffe ich.","128","128.wav"]
["File 129  =   J4 Tanken","Befehl wird ausgeführt. Neuanlernprozeß startet nach Rücknahme der Leistungsdrosslung zur Reichweitenerhöhung. Hast du noch einige Wünsche zur Grundkalibrierung?","129","129.wav"]
["File 130  =   N4 Tanken","Verstehe - ich sichere alle bestehenden Fahrprofile und es wird keine neue Lernsequenz gestartet.","130","130.wav"]
["File 131  =   J5 Tanken","Okey! Willkommen bei der Optimierung des neuen Fahrprofiles. Hier die neuen Parameter, die ich für Dich ausgewählt habe: erstens - sportliche Fahrweise, zweitens - Geschwindigkeitswarnung inner orts größer 7kmh und außer orts 12kmh, drittens - Kickdownerkennung bei 80% Gas Pedal, viertens - frühes schalten, fünftens - Drehzahl Begrenzung ab 7500 Umdrehungen und sechstens - Drosselung bei Motortemperatur größer 97°C. ich denke das reicht erstmal. Du kannst jederzeit neue Settings hinzufügen. Bis bald.","131","131.wav"]
["File 132  =   N5 Tanken","Ja genau - Standardkalibrierung wird verwendet.","132","132.wav"]
["'File 133  =   Mute Aus","Der Mjuting Modus wurde wieder aufgehoben. Was war denn los? Hattest du ein Problem mit dem Auto?","133","133.wav"]
["'File 134  =   J1 Mute","Verstehe, zum Glück ist nun wieder alles in Ordnung. Du kannst mich jeder Zeit leise schalten, damit du nicht abgelenkt wirst. Das Radio kannst du über die Lenkradsteuerung ebenfalls leise stellen. Ist die nun gewählte Lautstärke in Ordnung für Dich?","134","134.wav"]
["'File 135  =   N1 Mute","Also kein Problem mit dem Auto. Ich warte auf weitere Eingaben. Bis später!","135","135.wav"]
["'File 136  =   J2 Mute","Das freut mich. Ich behalte demnach dieses Audioprofil bei. Wenn wir schon dabei sind. Soll ich auch das Ektiv Auspuff Sound Systeem in der Lautstärke erhöhen?","136","136.wav"]
["'File 137  =   N2 Mute","Dann ist ja gut. Ich behallte alle Einstellungen. Bis nachher!","137","137.wav"]
["'File 138  =   J3 Mute","In Ordnung - habe die Lautstärke um weitere 10 % erhöht. Gib mir bitte mal ein Feedback ob es zu viel war! ","138","138.wav"]
["'File 139  =   N3 Mute","Klasse dann ist es nun super! Bis später!","139","139.wav"]
["'File 140  =   J4 Mute","Auwaia - dann regle ich es etwas zurück. Kann ich noch was für Dicht tun? Zum Beispiel Meine Lautstärke etwas reduzieren?","140","140.wav"]
["'File 141  =   N4 Mute","Also genau richtig, wie die Lautstärke des Ektiv Motor Sound Systeems ist. Ich schalte dann mal auf Ruhe Modus.","141","141.wav"]
["'File 142  =   J5 Mute","Okey ich drossle meine Stimme nun etwas. Test, eins, zwoo, drei. So besser?","142","142.wav"]
["'File 143  =   N5 Mute","Freut mich zu hören, dass ich nicht zu laut bin. Na dann bis nachher. Tschau","143","143.wav"]
["'File 144 = Mute Ein","Mjuting aktiviert - ich bin jetzt still!","144","144.wav"]
["'File 145 = frei","Uhrzeitstellen aktiviert. Taste D speichert, Taste B und C ist für Auf und Ab. Viel Erfolg!","145","145.wav"]
["'File 146 = wir haben heute","wir haben heute","146","146.wav"]
["'File 147 = der","der","147","147.wav"]
["'File 148= zweitausend","zweitausend","148","148.wav"]
["'File 149 = 0 als Zahlen gesprochen für Stunde+Min","Null","149","149.wav"]
["'File 150 = ein als Zahlen gesprochen für Stunde+Min","Ein","150","150.wav"]
["'File 151 =1 als Zahlen gesprochen für Stunde+Min","eins","151","151.wav"]
["File 152=2 als Zahlen gesprochen für Stunde+Min","zwei","152","152.wav"]
["File 153=3 als Zahlen gesprochen für Stunde+Min","drei","153","153.wav"]
["File 154=4 als Zahlen gesprochen für Stunde+Min","vier","154","154.wav"]
["File 155=5 als Zahlen gesprochen für Stunde+Min","fünf","155","155.wav"]
["File 156=6 als Zahlen gesprochen für Stunde+Min","sechs","156","156.wav"]
["File 157=7 als Zahlen gesprochen für Stunde+Min","sieben","157","157.wav"]
["File 158=8 als Zahlen gesprochen für Stunde+Min","acht","158","158.wav"]
["File 159=9 als Zahlen gesprochen für Stunde+Min","neun","159","159.wav"]
["File 160=10 als Zahlen gesprochen für Stunde+Min","zehn","160","160.wav"]
["File 161=11 als Zahlen gesprochen für Stunde+Min","elf","161","161.wav"]
["File 162=12 als Zahlen gesprochen für Stunde+Min","zwölf","162","162.wav"]
["File 163=13 als Zahlen gesprochen für Stunde+Min","dreizehn","163","163.wav"]
["File 164=14 als Zahlen gesprochen für Stunde+Min","vierzehn","164","164.wav"]
["File 165=15 als Zahlen gesprochen für Stunde+Min","fünfzehn","165","165.wav"]
["'File 166=16 als Zahlen gesprochen für Stunde+Min",16,"166","166.wav"]
["'File 167=17 als Zahlen gesprochen für Stunde+Min","siebzehn","167","167.wav"]
["File 168=18 als Zahlen gesprochen für Stunde+Min","achtzehn","168","168.wav"]
["File 169=19 als Zahlen gesprochen für Stunde+Min","neunzehn","169","169.wav"]
["File 170=20 als Zahlen gesprochen für Stunde+Min","zwanzig","170","170.wav"]
["File 171=21 als Zahlen gesprochen für Stunde+Min",21,"171","171.wav"]
["File 172=22 als Zahlen gesprochen für Stunde+Min",22,"172","172.wav"]
["File 173=23 als Zahlen gesprochen für Stunde+Min",23,"173","173.wav"]
["File 174=24 als Zahlen gesprochen für Stunde+Min",24,"174","174.wav"]
["File 175=25 als Zahlen gesprochen für Stunde+Min",25,"175","175.wav"]
["File 176=26 als Zahlen gesprochen für Stunde+Min",26,"176","176.wav"]
["File 177=27 als Zahlen gesprochen für Stunde+Min",27,"177","177.wav"]
["File 178=28 als Zahlen gesprochen für Stunde+Min",28,"178","178.wav"]
["File 179=29 als Zahlen gesprochen für Stunde+Min",29,"179","179.wav"]
["File 180=30 als Zahlen gesprochen für Stunde+Min",30,"180","180.wav"]
["File 181=31 als Zahlen gesprochen für Stunde+Min",31,"181","181.wav"]
["File 182=32 als Zahlen gesprochen für Stunde+Min",32,"182","182.wav"]
["File 183=33 als Zahlen gesprochen für Stunde+Min",33,"183","183.wav"]
["File 184=34 als Zahlen gesprochen für Stunde+Min",34,"184","184.wav"]
["File 185=35 als Zahlen gesprochen für Stunde+Min",35,"185","185.wav"]
["File 186=36 als Zahlen gesprochen für Stunde+Min",36,"186","186.wav"]
["File 187=37 als Zahlen gesprochen für Stunde+Min",37,"187","187.wav"]
["File 188=38 als Zahlen gesprochen für Stunde+Min",38,"188","188.wav"]
["File 189=39 als Zahlen gesprochen für Stunde+Min",39,"189","189.wav"]
["File 190=40 als Zahlen gesprochen für Stunde+Min",40,"190","190.wav"]
["File 191=41 als Zahlen gesprochen für Stunde+Min",41,"191","191.wav"]
["File 192=42 als Zahlen gesprochen für Stunde+Min",42,"192","192.wav"]
["File 193=43 als Zahlen gesprochen für Stunde+Min",43,"193","193.wav"]
["File 194=44 als Zahlen gesprochen für Stunde+Min",44,"194","194.wav"]
["File 195=45 als Zahlen gesprochen für Stunde+Min",45,"195","195.wav"]
["File 196=46 als Zahlen gesprochen für Stunde+Min",46,"196","196.wav"]
["File 197=47 als Zahlen gesprochen für Stunde+Min",47,"197","197.wav"]
["File 198=48 als Zahlen gesprochen für Stunde+Min",48,"198","198.wav"]
["File 199=49 als Zahlen gesprochen für Stunde+Min",49,"199","199.wav"]
["File 200=50 als Zahlen gesprochen für Stunde+Min",50,"200","200.wav"]
["File 201=51 als Zahlen gesprochen für Stunde+Min",51,"201","201.wav"]
["File 202=52 als Zahlen gesprochen für Stunde+Min",52,"202","202.wav"]
["File 203=53 als Zahlen gesprochen für Stunde+Min",53,"203","203.wav"]
["File 204=54 als Zahlen gesprochen für Stunde+Min",54,"204","204.wav"]
["File 205=55 als Zahlen gesprochen für Stunde+Min",55,"205","205.wav"]
["File 206=56 als Zahlen gesprochen für Stunde+Min",56,"206","206.wav"]
["File 207=57 als Zahlen gesprochen für Stunde+Min",57,"207","207.wav"]
["File 208=58 als Zahlen gesprochen für Stunde+Min",58,"208","208.wav"]
["File 209=59 als Zahlen gesprochen für Stunde+Min",59,"209","209.wav"]
["File 210  =   neu \"te\"","te",210,"210.wav"]
["File 211  =   Montag","Mon Tag",211,"211.wav"]
["File 212  =   Dienstag","Dienstag",212,"212.wav"]
["File 213  =   Mittwoch","Mittwoch",213,"213.wav"]
["File 214  =   Donnerstag","Donnerstag",214,"214.wav"]
["File 215  =   Freitag","Freitag",215,"215.wav"]
["File 216  =   Samstag","Samstag",216,"216.wav"]
["File 217  =   Sonntag","Sonntag",217,"217.wav"]
["File 218  =   neu \"erst\"","erst",218,"218.wav"]
["File 219  =   neu \"dritt\"","dritt",219,"219.wav"]
["'File 220  =  neu \"Uhr\"","Uhr",220,"220.wav"]
["'File 221 = Na du Nachtschwärmer","Na du Nachtschwärmer!",221,"221.wav"]
["'File 222 = Gunten Morgen","Guten Morgen",222,"222.wav"]
["'File 223 = Gunten Tag","Guten Tag",223,"223.wav"]
["'File 224 = Gunten Abend","Guten Abend",224,"224.wav"]
["'File 225 = Komma","Komma",225,"225.wav"]
["'File 226 = Minus","Minus",226,"226.wav"]
["'File 227 = Grad Celsius","Grad Celsius",227,"227.wav"]
["'File 228 = es ist jetzt","es ist jetzt",228,"228.wav"]
["'File 229 = Januar","Januar",229,"229.wav"]
["'File 230 = Februar","Februar",230,"230.wav"]
["'File 231 = März","März",231,"231.wav"]
["'File 232  =  April","April",232,"232.wav"]
["'File 233  =   Mai","Mai",233,"233.wav"]
["'File 234 = Juni","Juni",234,"234.wav"]
["'File 235 = Juli","Juli",235,"235.wav"]
["'File 236 = August","August",236,"236.wav"]
["'File 237 = September","September",237,"237.wav"]
["'File 238 = Oktober","Oktober",238,"238.wav"]
["'File 239 = November","November",239,"239.wav"]
["'File 240 = Dezember","Dezember",240,"240.wav"]
["'File 241 = Kraftstoffwarnung nach 6h Betriebszeit","Hey - Wir sind schon eine ganze Weile unterwegs. Bitte prüfe den Kraftstoff vorrat!",241,"241.wav"]
["'File 242 = Motortemperatur zu gering","Der Motor benötigt noch 235 Sekunden, bis er seine Betriebs Temperatur erreicht hat.",242,"242.wav"]
["'File 243 = Motortemperatur erreicht","Das Antriebsaggregat hat seine Betriebstemperatur erreicht. Du kannst nun die volle Antriebsleistung abrufen. Viel Spaß!",243,"243.wav"]
["'File 244 = Anrede unautorisierte Person","Hallo Fremder!",244,"244.wav"]
["'File 245 = Anrede Ralf","Hallo Ralf!",245,"245.wav"]
["File 246  =   neu Autorisationsfrage","Netzhaut skänn aktiviert. Bitte nicht bewegen. Fertig!",246,"246.wav"]
["File 247  =   neu Autorisation positiv","Netzhaut skänn positiv! Herzlich Willkommen Ralf!",247,"247.wav"]
["File 248  =   neu Autorisation negatic","Netzhaut skänn negativ! Sie sind nicht autorisiert!\nBitte verlassen sie den Wagen!",248,"248.wav"]
["File 249  =   neu Gute Fahrt","Wie war Dein Tag? Ich hoffe nicht zu stressig, aber du kannst Dich ja hier gleich relext zurücklehnen.\nDer Motor wurde erfolgreich gestartet und du kannst nun die Parameter für die Beleuchtung, Airkondischen und Audioanlage wählen. Ich melde mich gleich zurück. Tschau\nDer Systeem tscheck wurde positiv abgeschlossen.\nGute Fahrt Ralf und bis bald.",249,"249.wav"]
["File 250  =   neu Einschluss","Letzte Warnung! In wenigen Sekunden wird die Zentralverrieglung dauerhaft aktiviert um Sie festzusetzen.  tschi-pi-ess Daten an Besitzer und Polizei übermittelt! Kaun daun läuft!  5, 4, 3, 2, 1 - Verrieglung aktiv !",250,"250.wav"]
["File 251  =   du Bist der falsche Fahrer1","Biometrischer Scan gestartet. Gesichtserkennung abgeschlossen. Fingerabdruck sensoren haben Muster erfasst und an Server übertragen.",251,"251.wav"]
["File 252  =   du Bist der falsche Fahrer2","Alarm wegen Diebstahles! Soeben wurde eine Einbruchsmeldung mit den Ortsko ordinaten an Besitzer und Polizei versendet. Audio und Videoaufzeichnungen online. Verlassen Sie umgehend das Fahrzeug, denn Diebstal lohnt sich hier nicht!",252,"252.wav"]
["File 253  =   du Bist der falsche Fahrer3","Achtung! Einbruch in Fahrzeug dedektiert!  Die automatische Diebstahl Nachricht und die tschi-pi-ess Daten Deines Aufenthaltsortes wurden an Besitzer und Polizei verschickt. Bild und Tonaufzeichnung wurden gestartet. Entfernen Sie sich umgehend vom Fahrzeug, da in wenigen Minuten die Polizei eintreffen wird.",253,"253.wav"]
["File 254  =   du Bist der falsche Fahrer4","Letzte Warnung! Es lohnt sich hier nicht, denn der Wagen hat einen Bord computer und ich bin dessen Stimme und werde alle folgenden Handlungen blockieren. Die Diebstalsmeldung ist bereits an den Besitzer und die Polizei weiter gegeben worden. Bitte entfernen Sie sich vom Fahrzeug!",254,"254.wav"]
["File 255  =   du Bist der falsche Fahrer5","Ich werde nun die Sitzheizung überlasten bis Ihnen die Hose brennt. Viel Spaß",255,"255.wav"]

{"sheet":"Tabelle1","index":1,"n_rows":59,"n_cols":6,"rows_kept":59,"cut":false,"hidden":false,"merged":[]}
["File 151 ",1," als Zahlen gesprochen für Stunde+Min",null,null,{"$f":"A1 & \"=\" & B1 & C1","v":"File 151 =1 als Zahlen gesprochen für Stunde+Min"}]
["File 152",2," als Zahlen gesprochen für Stunde+Min",null,null,{"$f":"A2 & \"=\" & B2 & C2","v":"File 152=2 als Zahlen gesprochen für Stunde+Min"}]
["File 153",3," als Zahlen gesprochen für Stunde+Min",null,null,"File 153=3 als Zahlen gesprochen für Stunde+Min"]
["File 154",4," als Zahlen gesprochen für Stunde+Min",null,null,"File 154=4 als Zahlen gesprochen für Stunde+Min"]
["File 155",5," als Zahlen gesprochen für Stunde+Min",null,null,"File 155=5 als Zahlen gesprochen für Stunde+Min"]
["File 156",6," als Zahlen gesprochen für Stunde+Min",null,null,"File 156=6 als Zahlen gesprochen für Stunde+Min"]
["File 157",7," als Zahlen gesprochen für Stunde+Min",null,null,"File 157=7 als Zahlen gesprochen für Stunde+Min"]
["File 158",8," als Zahlen gesprochen für Stunde+Min",null,null,"File 158=8 als Zahlen gesprochen für Stunde+Min"]
["File 159",9," als Zahlen gesprochen für Stunde+Min",null,null,"File 159=9 als Zahlen gesprochen für Stunde+Min"]
["File 160",10," als Zahlen gesprochen für Stunde+Min",null,null,"File 160=10 als Zahlen gesprochen für Stunde+Min"]
["File 161",11," als Zahlen gesprochen für Stunde+Min",null,null,"File 161=11 als Zahlen gesprochen für Stunde+Min"]
["File 162",12," als Zahlen gesprochen für Stunde+Min",null,null,"File 162=12 als Zahlen gesprochen für Stunde+Min"]
["File 163",13," als Zahlen gesprochen für Stunde+Min",null,null,"File 163=13 als Zahlen gesprochen für Stunde+Min"]
["File 164",14," als Zahlen gesprochen für Stunde+Min",null,null,"File 164=14 als Zahlen gesprochen für Stunde+Min"]
["File 165",15," als Zahlen gesprochen für Stunde+Min",null,null,"File 165=15 als Zahlen gesprochen für Stunde+Min"]
["File 166",16," als Zahlen gesprochen für Stunde+Min",null,null,"File 166=16 als Zahlen gesprochen für Stunde+Min"]
["File 167",17," als Zahlen gesprochen für Stunde+Min",null,null,"File 167=17 als Zahlen gesprochen für Stunde+Min"]
["File 168",18," als Zahlen gesprochen für Stunde+Min",null,null,"File 168=18 als Zahlen gesprochen für Stunde+Min"]
["File 169",19," als Zahlen gesprochen für Stunde+Min",null,null,"File 169=19 als Zahlen gesprochen für Stunde+Min"]
["File 170",20," als Zahlen gesprochen für Stunde+Min",null,null,"File 170=20 als Zahlen gesprochen für Stunde+Min"]
["File 171",21," als Zahlen gesprochen für Stunde+Min",null,null,"File 171=21 als Zahlen gesprochen für Stunde+Min"]
["File 172",22," als Zahlen gesprochen für Stunde+Min",null,null,"File 172=22 als Zahlen gesprochen für Stunde+Min"]
["File 173",23," als Zahlen gesprochen für Stunde+Min",null,null,"File 173=23 als Zahlen gesprochen für Stunde+Min"]
["File 174",24," als Zahlen gesprochen für Stunde+Min",null,null,"File 174=24 als Zahlen gesprochen für Stunde+Min"]
["File 175",25," als Zahlen gesprochen für Stunde+Min",null,null,"File 175=25 als Zahlen gesprochen für Stunde+Min"]
["File 176",26," als Zahlen gesprochen für Stunde+Min",null,null,"File 176=26 als Zahlen gesprochen für Stunde+Min"]
["File 177",27," als Zahlen gesprochen für Stunde+Min",null,null,"File 177=27 als Zahlen gesprochen für Stunde+Min"]
["File 178",28," als Zahlen gesprochen für Stunde+Min",null,null,"File 178=28 als Zahlen gesprochen für Stunde+Min"]
["File 179",29," als Zahlen gesprochen für Stunde+Min",null,null,"File 179=29 als Zahlen gesprochen für Stunde+Min"]
["File 180",30," als Zahlen gesprochen für Stunde+Min",null,null,"File 180=30 als Zahlen gesprochen für Stunde+Min"]
["File 181",31," als Zahlen gesprochen für Stunde+Min",null,null,"File 181=31 als Zahlen gesprochen für Stunde+Min"]
["File 182",32," als Zahlen gesprochen für Stunde+Min",null,null,"File 182=32 als Zahlen gesprochen für Stunde+Min"]
["File 183",33," als Zahlen gesprochen für Stunde+Min",null,null,"File 183=33 als Zahlen gesprochen für Stunde+Min"]
["File 184",34," als Zahlen gesprochen für Stunde+Min",null,null,"File 184=34 als Zahlen gesprochen für Stunde+Min"]
["File 185",35," als Zahlen gesprochen für Stunde+Min",null,null,"File 185=35 als Zahlen gesprochen für Stunde+Min"]
["File 186",36," als Zahlen gesprochen für Stunde+Min",null,null,"File 186=36 als Zahlen gesprochen für Stunde+Min"]
["File 187",37," als Zahlen gesprochen für Stunde+Min",null,null,"File 187=37 als Zahlen gesprochen für Stunde+Min"]
["File 188",38," als Zahlen gesprochen für Stunde+Min",null,null,"File 188=38 als Zahlen gesprochen für Stunde+Min"]
["File 189",39," als Zahlen gesprochen für Stunde+Min",null,null,"File 189=39 als Zahlen gesprochen für Stunde+Min"]
["File 190",40," als Zahlen gesprochen für Stunde+Min",null,null,"File 190=40 als Zahlen gesprochen für Stunde+Min"]
["File 191",41," als Zahlen gesprochen für Stunde+Min",null,null,"File 191=41 als Zahlen gesprochen für Stunde+Min"]
["File 192",42," als Zahlen gesprochen für Stunde+Min",null,null,"File 192=42 als Zahlen gesprochen für Stunde+Min"]
["File 193",43," als Zahlen gesprochen für Stunde+Min",null,null,"File 193=43 als Zahlen gesprochen für Stunde+Min"]
["File 194",44," als Zahlen gesprochen für Stunde+Min",null,null,"File 194=44 als Zahlen gesprochen für Stunde+Min"]
["File 195",45," als Zahlen gesprochen für Stunde+Min",null,null,"File 195=45 als Zahlen gesprochen für Stunde+Min"]
["File 196",46," als Zahlen gesprochen für Stunde+Min",null,null,"File 196=46 als Zahlen gesprochen für Stunde+Min"]
["File 197",47," als Zahlen gesprochen für Stunde+Min",null,null,"File 197=47 als Zahlen gesprochen für Stunde+Min"]
["File 198",48," als Zahlen gesprochen für Stunde+Min",null,null,"File 198=48 als Zahlen gesprochen für Stunde+Min"]
["File 199",49," als Zahlen gesprochen für Stunde+Min",null,null,"File 199=49 als Zahlen gesprochen für Stunde+Min"]
["File 200",50," als Zahlen gesprochen für Stunde+Min",null,null,"File 200=50 als Zahlen gesprochen für Stunde+Min"]
["File 201",51," als Zahlen gesprochen für Stunde+Min",null,null,"File 201=51 als Zahlen gesprochen für Stunde+Min"]
["File 202",52," als Zahlen gesprochen für Stunde+Min",null,null,"File 202=52 als Zahlen gesprochen für Stunde+Min"]
["File 203",53," als Zahlen gesprochen für Stunde+Min",null,null,"File 203=53 als Zahlen gesprochen für Stunde+Min"]
["File 204",54," als Zahlen gesprochen für Stunde+Min",null,null,"File 204=54 als Zahlen gesprochen für Stunde+Min"]
["File 205",55," als Zahlen gesprochen für Stunde+Min",null,null,"File 205=55 als Zahlen gesprochen für Stunde+Min"]
["File 206",56," als Zahlen gesprochen für Stunde+Min",null,null,"File 206=56 als Zahlen gesprochen für Stunde+Min"]
["File 207",57," als Zahlen gesprochen für Stunde+Min",null,null,"File 207=57 als Zahlen gesprochen für Stunde+Min"]
["File 208",58," als Zahlen gesprochen für Stunde+Min",null,null,"File 208=58 als Zahlen gesprochen für Stunde+Min"]
["File 209",59," als Zahlen gesprochen für Stunde+Min",null,null,"File 209=59 als Zahlen gesprochen für Stunde+Min"]